Cogmind - Beta 10.2 @@@ ROGUE MODE // 2020.10.30 @ 23:29:02 // Halloween2020/ForbiddenLore Player: Trione Result: Destroyed by 7V-RTL with Dispersion Rifle Performance ------------- Evolutions (3) 1500 Regions Visited (11) 2200 Robots Destroyed (173) 865 Value Destroyed (3548) 3548 Prototype IDs (7) 140 Alien Tech Used (0) 0 Bonus (258) 258 TOTAL SCORE: 8511 Bonus ------- High Alert Combat Kills 159 Met Imprinter 300 Friendly Fire -201 Cogmind --------- Core Integrity 0/700 Matter 69/300 Energy 100/100 System Corruption 0% Temperature Cool (9) Movement Core (1150) Ox22 Location -7/Zion Parts ------- > --- POWER (1) -------- (None) > --- PROPULSION (3) --- (None) > --- UTILITY (4) ------ High-capacity Storage Unit High-capacity Storage Unit > --- WEAPON (5) ------- Makeshift Axe > --- INVENTORY (20) --- Shock Rifle Lightning Gun Improved Spread Laser Improved Spread Laser Improved Spread Laser Improved Spread Laser Improved Spread Laser Improved Assault Rifle Gauss Rifle Proton Missile Launcher Heavy Rocket Launcher Heavy Rocket Launcher Makeshift Hammer Peak State ------------ > --- POWER ------------ Makeshift Power Source > --- PROPULSION ------- Light Treads Medium Treads Makeshift Leg > --- UTILITY ---------- Coolant Injector High-capacity Storage Unit High-capacity Storage Unit Hardened Medium Armor Plating > --- WEAPON ----------- Improved Spread Laser Improved Spread Laser Phasing Sabre Spear Spear > --- INVENTORY -------- Wheel Compact Wheel Improved Heat Sink Coolant Injector Heavy Armor Plating Shock Rifle Lightning Gun Improved Spread Laser Improved Spread Laser Improved Spread Laser Improved Assault Rifle Enhanced Autogun Gauss Rifle Proton Missile Launcher Heavy Rocket Launcher Heavy Rocket Launcher Heavy Rocket Launcher Great Maul Spear [Rating: 53] Favorites ----------- Power Nuclear Core Engine Ion Engine Power Core Nuclear Core Propulsion Light Treads Treads Light Treads Leg Makeshift Leg Wheel Wheel Utility High-capacity Storage Unit Device Coolant Injector Storage High-capacity Storage Unit Processor Melee Analysis Suite Protection Hardened Medium Armor Plating Weapon Improved Spread Laser Energy Gun Improved Spread Laser Energy Cannon Advanced Beam Cannon Ballistic Gun Improved Assault Rifle Launcher Rocket Launcher Impact Weapon Great Maul Slashing Weapon Phasing Sabre Piercing Weapon Spear Build | -11 -10 -10 -9 -9 -9 -8 -8 -8 -7 -7 -7 ------- Run | Scr Mat Min Mat Min Exi Min Mat Sto Fac Low Zio Slots Evolved 6 | . . . 2 . . . 2 . 2 . . Power . | . . . . . . . . . . . . Propulsion 1 | . . . . . . . . . 1 . . Utility 2 | . . . . . . . 2 . . . . Weapon 3 | . . . 2 . . . . . 1 . . Parts Attached 152 | 5 2 8 30 . . 10 18 31 13 3 32 Power 11 | 1 . . 2 . . . 2 3 1 . 2 Engine 8 | 1 . . 2 . . . . 3 . . 2 Core 3 | . . . . . . . 2 . 1 . . Reactor . | . . . . . . . . . . . . Propulsion 26 | 2 . 2 2 . . 4 1 6 1 2 6 Treads 9 | . . 2 2 . . . . 2 1 2 . Leg 4 | . . . . . . . . . . . 4 Wheel 13 | 2 . . . . . 4 1 4 . . 2 Hover . | . . . . . . . . . . . . Flight . | . . . . . . . . . . . . Utility 23 | . 2 . 2 . . . 3 7 3 1 5 Device 10 | . . . . . . . 2 2 2 1 3 Storage 5 | . 2 . 2 . . . . 1 . . . Processor 1 | . . . . . . . . 1 . . . Hackware . | . . . . . . . . . . . . Protection 7 | . . . . . . . 1 3 1 . 2 Artifact . | . . . . . . . . . . . . Weapon 92 | 2 . 6 24 . . 6 12 15 8 . 19 Energy Gun 16 | 1 . 1 1 . . . 2 2 6 . 3 Energy Cannon 6 | . . . 5 . . 1 . . . . . Ballistic Gun 28 | 1 . 1 7 . . 4 6 4 . . 5 Ballistic Cannon . | . . . . . . . . . . . . Launcher 19 | . . 4 7 . . 1 4 . 1 . 2 Special Weapon . | . . . . . . . . . . . . Impact Weapon 13 | . . . 4 . . . . 7 . . 2 Slashing Weapon 3 | . . . . . . . . . . . 3 Piercing Weapon 7 | . . . . . . . . 2 1 . 4 Special Melee Weapon . | . . . . . . . . . . . . Unidentified Prototypes 7 | . . . 3 . . . . 2 1 . 1 Parts Lost 55 | . . 6 9 . . 2 6 8 1 1 22 Power 8 | . . 1 1 . . . . 2 1 . 3 Propulsion 19 | . . 1 2 . . 2 2 3 . 1 8 Utility 7 | . . . . . . . 1 2 . . 4 Weapon 21 | . . 4 6 . . . 3 1 . . 7 Highest Loss Streak 15 | . . 3 5 . . 2 4 5 1 1 15 Average Slot Usage (%) 91 | . 95 78 83 100 61 88 93 93 99 99 93 Engine 4 | . 14 7 6 11 11 11 1 4 1 . . Core 3 | . . . . . . . 7 1 4 7 5 Treads 16 | . . 20 16 22 22 12 . 9 23 22 20 Wheel 3 | . 28 6 . . . 6 15 6 . . . Device 4 | . . . . . . . 14 4 7 7 6 Storage 18 | . 23 28 22 22 22 22 18 18 15 15 15 Processor 1 | . . . . . . . . 7 1 . . Protection 3 | . . . . . . . . 5 4 7 6 Energy Gun 9 | . 14 5 2 . . . 11 2 35 38 1 Energy Cannon 2 | . . . 11 . . 6 5 . . . . Ballistic Gun 8 | . 14 5 12 44 6 28 15 3 . . 2 Launcher 1 | . . 3 4 . . . 2 . . . . Impact Weapon 5 | . . . 6 . . . . 19 1 . 5 Piercing Weapon 6 | . . . . . . . . 10 1 . 20 Naked Turns . | . . . . . . . . . . . . Heaviest Build 100 | 7 39 41 88 81 81 82 97 97 100 100 100 Greatest Support 68 | 26 26 40 40 40 40 40 20 40 60 68 68 Greatest Overweight (x) 27 | . 1 4 22 2 2 27 9 25 1 1 4 Average Overweight (x) 1 | . . 1 2 2 1 3 4 3 1 1 1 Largest Inventory Capacity 22 | 4 16 16 20 20 20 20 20 22 20 20 20 Average Capacity 19 | 4 14 16 19 20 20 20 20 20 20 20 20 Most Carried 20 | 4 8 8 12 11 15 15 20 20 20 20 20 Average Carried 16 | 2 4 5 7 11 14 13 19 19 19 19 19 Final Capacity 20 | 4 16 16 20 20 20 20 20 20 20 20 20 Final Carried 20 | 4 8 4 11 11 15 15 20 20 20 20 13 Class Distribution -------------------- 44% | Hauler-Mutant 26% | Hauler-Gunner 19% | Hauler-Tank 7% | Mutant Dominant Class ---------------- Mutant | -10/Materials Mutant | -10/Mines Hauler-Mutant | -9/Materials Hauler-Gunner | -9/Mines Hauler-Mutant | -9/Exiles Hauler-Gunner | -8/Mines Hauler-Gunner | -8/Materials Hauler-Mutant | -8/Storage Hauler-Tank | -7/Factory Hauler-Tank | -7/Lower Caves Hauler-Mutant | -7/Zion Resources | -11 -10 -10 -9 -9 -9 -8 -8 -8 -7 -7 -7 ----------- Run | Scr Mat Min Mat Min Exi Min Mat Sto Fac Low Zio Matter Collected 2865 | 225 53 148 557 . . 599 385 466 136 69 227 Remotely 326 | . . . . . . . 326 . . . . Salvage Created 5140 | 50 61 115 857 . . 986 605 1662 292 180 332 Parts 313 | 2 5 7 62 . . 46 48 83 19 13 28 Haulers Intercepted 12 | . . . 4 . . . 2 5 1 . . Recyclers Shooed 2 | . 1 . . . . . 1 . . . . Parts Field Recycled . | . . . . . . . . . . . . Retrieved Matter . | . . . . . . . . . . . . Parts Self-Destructed 19 | . . . . . . . . . . 19 . Prevented . | . . . . . . . . . . . . Kills | -11 -10 -10 -9 -9 -9 -8 -8 -8 -7 -7 -7 ------- Run | Scr Mat Min Mat Min Exi Min Mat Sto Fac Low Zio Combat Hostiles Destroyed 110 | . 3 18 23 . . 14 20 18 2 8 4 Melee 17 | . . . 1 . . . . 15 . . 1 Guns 37 | . 3 . 4 . . 9 6 3 2 8 2 Cannons 10 | . . . 3 . . 3 4 . . . . AOE 45 | . . 18 14 . . 2 10 . . . 1 Classes Destroyed 17 | 1 2 2 5 . . 2 1 . 2 . 2 Worker 16 | . 1 2 2 . . 2 2 3 4 . . Builder 5 | . . . 1 . . . 1 2 1 . . Tunneler 3 | . . . . . . 3 . . . . . Hauler 12 | . . . 4 . . . 2 5 1 . . Recycler 11 | 1 . . 1 . . 4 . 4 1 . . Operator 1 | . . . . . . . . . 1 . . Watcher 2 | . . . 1 . . . . . 1 . . Swarmer 35 | . 3 . 11 . . 3 12 . . 6 . Grunt 28 | . . 3 9 . . 8 1 7 . . . Brawler 3 | . . . 1 . . 2 . . . . . Duelist 2 | . . . . . . . 1 1 . . . Sentry 19 | . . . 2 . . . 6 9 1 1 . Hunter 3 | . . . . . . 1 . 1 . 1 . Programmer 1 | . . . . . . . . . 1 . . Zionite 13 | . . . . . . . . . . . 13 Assembled 15 | . . 15 . . . . . . . . . Thug 1 | . . . . . . . . . . . 1 Butcher 1 | . . . . . . . . . . . 1 Mutant 1 | . . . . . . . . . . . 1 Best Kill Streak 18 | 1 3 18 7 . . 4 7 8 2 3 13 Combat Bots Only 16 | . 3 16 6 . . 3 6 3 1 3 1 Max Kills in Single Turn 5 | 1 2 5 5 . . 2 4 2 1 2 2 Gunslinging 1 | . 1 . . . . . . . . 1 . Exploded 5 | . . 5 4 . . 1 4 . . . 1 Melee 1 | . . . 1 . . . . 1 . . 1 Uniques/NPCs Destroyed 1 | . . . . . . . . . . . 1 Imprinter (-7/Zion) Combat | -11 -10 -10 -9 -9 -9 -8 -8 -8 -7 -7 -7 -------- Run | Scr Mat Min Mat Min Exi Min Mat Sto Fac Low Zio Damage Taken 8341 | . 37 714 1196 . . 530 540 1749 270 477 2828 Core 1610 | . 23 85 278 . . 46 55 414 112 12 585 Absorbed by Shields . | . . . . . . . . . . . . Core Remaining (%) 47 | 100 . 56 . . . 19 . 14 . . . Volleys Fired 220 | 1 10 10 45 . . 40 45 19 14 9 27 Largest 5 | 2 2 2 4 . . 4 4 4 5 5 3 Hottest 375 | 60 60 70 272 . . 137 189 189 375 375 225 Shots Fired 698 | 2 20 16 109 2 . 151 145 66 72 44 71 Gun 548 | 2 20 2 45 2 . 123 105 66 72 44 67 Cannon 112 | . . . 52 . . 26 34 . . . . Launcher 38 | . . 14 12 . . 2 6 . . . 4 Special . | . . . . . . . . . . . . Kinetic 325 | 1 10 1 36 2 . 123 64 33 . . 55 Thermal 335 | 1 10 1 61 . . 26 75 33 72 44 12 Explosive 38 | . . 14 12 . . 2 6 . . . 4 Electromagnetic . | . . . . . . . . . . . . Robot Hit Streak 24 | 2 4 3 9 . . 14 8 4 24 14 14 Robot Miss Streak 6 | . 2 4 3 . . 4 5 6 4 6 4 Penetration Max 1 | . . . . . . . . 1 . . . Secondary Targets 3 | . 1 . . . . . . . . 1 1 Max Gunslinging Chain 1 | . 1 . . . . . . . . 1 1 Shots Hit Robots 511 | 2 10 5 69 . . 83 65 79 54 39 105 Core Hits 309 | 2 6 40 44 . . 38 33 33 33 31 49 Critical Hits 23 | . . . 7 . . 5 3 2 . . 6 Critical Kills 7 | . . . 3 . . 2 1 1 . . . Critical Parts Destroyed 13 | . . . 4 . . 3 1 1 . . 4 Melee Attacks 193 | . . . 24 . . . . 83 2 . 84 Impact 74 | . . . 24 . . . . 44 . . 6 Slashing 35 | . . . . . . . . . . . 35 Piercing 84 | . . . . . . . . 39 2 . 43 Sneak Attacks 16 | . . . 2 . . . . 11 2 . 1 Combat Hostiles . | . . . . . . . . . . . . Follow-up Attacks 36 | . . . 7 . . . . 14 . . 15 Damage Inflicted 15428 | 19 104 1601 2380 . . 1919 2068 2674 861 528 3274 Guns 4837 | 19 104 13 222 . . 1077 799 691 603 528 781 Cannons 1226 | . . . 489 . . 408 329 . . . . Explosions 4755 | . . 1568 1333 . . 415 940 . . . 499 Melee 4447 | . . . 306 . . . . 1983 164 . 1994 Ramming 163 | . . 20 30 . . 19 . . 94 . . Kinetic 2461 | 8 48 . 131 . . 1077 320 347 . . 530 Thermal 3788 | 11 56 13 580 . . 594 808 344 603 528 251 Explosive 4569 | . . 1568 1333 . . 229 940 . . . 499 Electromagnetic . | . . . . . . . . . . . . Impact 1057 | . . . 306 . . . . 659 . . 92 Slashing 910 | . . . . . . . . . . . 910 Piercing 2480 | . . . . . . . . 1324 164 . 992 Highest Corruption 12 | . . . 12 12 12 12 3 3 5 5 5 Average Corruption 7 | . . . 11 12 12 12 2 3 4 5 5 Corruption Purged . | . . . . . . . . . . . . Effects 207 | . . . 28 10 8 86 4 25 24 19 3 Message Errors 42 | . . . 5 1 1 11 . 10 11 2 1 Matter Fused 33 | . . . 6 1 5 7 2 3 4 4 1 Heat Flow Errors 17 | . . . 2 2 1 8 . 2 . 2 . Energy Discharges 16 | . . . 2 2 1 3 1 4 1 2 . Parts Rejected 3 | . . . 1 . . . . . . 2 . Data Loss (minor) 22 | . . . 4 1 . 8 1 3 2 2 1 Data Loss (major) 5 | . . . . 1 . 3 . . 1 . . Misfires 8 | . . . 1 2 . 2 . . 2 1 . Alerts 1 | . . . . . . 1 . . . . . Misdirections 12 | . . . 1 . . 11 . . . . . Targeting Errors 43 | . . . 6 . . 29 . 3 3 2 . Weapon Failures 5 | . . . . . . 3 . . . 2 . Overload Shots . | . . . . . . . . . . . . Overflow Damage 593 | . . 49 108 . . 17 36 339 22 . 22 Projectiles 42 | . . . 17 . . 14 11 . . . . Explosions 123 | . . 49 46 . . 3 25 . . . . Melee 428 | . . . 45 . . . . 339 22 . 22 Knockbacks 5 | . . . 1 . . . . 2 2 . . Impact 4 | . . . 1 . . . . 2 1 . . Kinetic . | . . . . . . . . . . . . Secondary 1 | . . . . . . . . . 1 . . Self-Inflicted Damage 149 | . . 69 47 . . 18 15 . . . . Shots 6 | . . 2 1 . . 2 1 . . . . Rammed 23 | . . 6 9 . . 5 . . 3 . . Targets Rammed 24 | . . 6 9 . . 5 . . 4 . . Kicked . | . . . . . . . . . . . . Crushed 1 | . . . . . . . . . 1 . . Highest Temperature 654 | 20 40 50 654 213 244 403 338 258 589 301 199 Average Temperature 116 | 15 20 28 145 97 122 127 97 97 143 126 53 Received Heat Transfer 1670 | . . 38 243 . . 261 126 468 . 66 468 Effects 20 | . . . 10 . . 7 . . 2 1 . Shutdowns 3 | . . . 1 . . 2 . . . . . Energy Bleed 3 | . . . . . . 1 . . 1 1 . Interference 6 | . . . 3 . . 3 . . . . . Matter Decay 2 | . . . 1 . . 1 . . . . . Short Circuit 1 | . . . 1 . . . . . . . . Damage (minor) 2 | . . . 2 . . . . . . . . Damage (major) 1 | . . . 1 . . . . . . . . Damage (core) 2 | . . . 1 . . . . . 1 . . Siege Activations . | . . . . . . . . . . . . Robots Corrupted . | . . . . . . . . . . . . Combat Hostiles . | . . . . . . . . . . . . Parts Fried 3 | . . . 1 . . . . 2 . . . Impact Corruptions 11 | . . . 4 . . . . 6 1 . . Robots Melted . | . . . . . . . . . . . . Combat Hostiles . | . . . . . . . . . . . . Parts Melted 3 | . . . . . . 1 2 . . . . Heat Transferred 5436 | 25 125 37 1088 . . 1040 1517 666 470 430 38 Parts Sabotaged . | . . . . . . . . . . . . Parts Stolen . | . . . . . . . . . . . . Parts Stripped . | . . . . . . . . . . . . Power Chain Reactions . | . . . . . . . . . . . . Missiles Intercepted . | . . . . . . . . . . . . Alert | -11 -10 -10 -9 -9 -9 -8 -8 -8 -7 -7 -7 ------- Run | Scr Mat Min Mat Min Exi Min Mat Sto Fac Low Zio Peak Influence 627 | 5 98 72 480 141 . 211 627 549 240 . . Initial 248 | . 3 37 27 141 . . 81 248 176 . . Average 232 | 2 60 42 325 141 . 98 429 360 109 . . Maximum Alert Level 2 | . . . 2 . . 1 2 2 1 . . Low Security (%) 48 | 100 100 100 6 100 . 99 17 . 82 . . Level 1 36 | . . . 78 . . . 15 77 17 . . Level 2 14 | . . . 14 . . . 67 22 . . . Level 3 . | . . . . . . . . . . . . Level 4 . | . . . . . . . . . . . . Level 5 . | . . . . . . . . . . . . High Security . | . . . . . . . . . . . . Max Security . | . . . . . . . . . . . . Squads Dispatched 9 | . . . 1 . . 1 . 2 5 . . Investigation 3 | . . . 1 . . . . 1 1 . . Extermination 2 | . . . . . . . . . 2 . . Reinforcement 4 | . . . . . . 1 . 1 2 . . Assault . | . . . . . . . . . . . . Garrison . | . . . . . . . . . . . . Intercept . | . . . . . . . . . . . . Construction Impeded 1 | . . . . . . 1 . . . . . Haulers Reinforced . | . . . . . . . . . . . . Stealth | -11 -10 -10 -9 -9 -9 -8 -8 -8 -7 -7 -7 --------- Run | Scr Mat Min Mat Min Exi Min Mat Sto Fac Low Zio Distress Signals 12 | . 2 . 3 . . 2 2 3 . . . Communications Jammed . | . . . . . . . . . . . . Distress Signals . | . . . . . . . . . . . . Times Spotted 173 | . 6 23 34 . . 15 27 30 8 8 22 Peak Tracking Total 17 | . 5 17 5 . . 4 6 6 2 3 4 Tactical Retreats 14 | . . 1 1 . . 3 4 2 . . 3 Traps | -11 -10 -10 -9 -9 -9 -8 -8 -8 -7 -7 -7 ------- Run | Scr Mat Min Mat Min Exi Min Mat Sto Fac Low Zio Traps Triggered 7 | . . . 1 . . . 2 2 2 . . Indirectly . | . . . . . . . . . . . . Trap Hack Attempts . | . . . . . . . . . . . . Triggered . | . . . . . . . . . . . . Disarmed . | . . . . . . . . . . . . Reprogrammed . | . . . . . . . . . . . . Reused . | . . . . . . . . . . . . Traps Extracted . | . . . . . . . . . . . . Installed . | . . . . . . . . . . . . Triggered . | . . . . . . . . . . . . Machines | -11 -10 -10 -9 -9 -9 -8 -8 -8 -7 -7 -7 ---------- Run | Scr Mat Min Mat Min Exi Min Mat Sto Fac Low Zio Machines Disabled 13 | . . . 3 . . 4 3 3 . . . Max in Single Turn 3 | . . . 2 . . 3 1 1 . . . Garrison Access 1 | . . . . . . . . 1 . . . Machines Sabotaged . | . . . . . . . . . . . . Garrisons Compromised . | . . . . . . . . . . . . Overloaded Fab Kills . | . . . . . . . . . . . . Fab Network Shutdowns . | . . . . . . . . . . . . Hacking | -11 -10 -10 -9 -9 -9 -8 -8 -8 -7 -7 -7 --------- Run | Scr Mat Min Mat Min Exi Min Mat Sto Fac Low Zio Machines Accessed 13 | . 1 . . . 1 . . 8 2 1 . Terminals 9 | . 1 . . . . . . 7 1 . . Fabricators . | . . . . . . . . . . . . Repair Stations . | . . . . . . . . . . . . Recycling Units 1 | . . . . . . . . . 1 . . Scanalyzers . | . . . . . . . . . . . . Garrison Access 1 | . . . . . . . . 1 . . . Total Hacks 30 | . 2 . . . 8 . . 16 3 1 . Successful 19 | . 2 . . . 8 . . 7 1 1 . Failed 11 | . . . . . . . . 9 2 . . Catastrophic 2 | . . . . . . . . 1 1 . . Database Lockouts . | . . . . . . . . . . . . Manual 18 | . 2 . . . . . . 8 2 . 6 Terminals 19 | . 2 . . . . . . 15 2 . . Fabricators . | . . . . . . . . . . . . Repair Stations . | . . . . . . . . . . . . Recycling Units 1 | . . . . . . . . . 1 . . Scanalyzers . | . . . . . . . . . . . . Garrison Access 1 | . . . . . . . . 1 . . . Terminal Hacks 17 | . 1 . . . 8 . . 6 1 1 . Record 8 | . . . . . 8 . . . . . . Open Door 3 | . . . . . . . . 2 . 1 . Level Access Points 1 | . . . . . . . . 1 . . . Branch Access Points 1 | . . . . . . . . . 1 . . Unreport Threat 1 | . . . . . . . . 1 . . . Recall Reinforcements 1 | . . . . . . . . 1 . . . Zone Layout 2 | . 1 . . . . . . 1 . . . Fabricator Hacks . | . . . . . . . . . . . . Repair Station Hacks . | . . . . . . . . . . . . Recycling Unit Hacks . | . . . . . . . . . . . . Scanalyzer . | . . . . . . . . . . . . Garrison Access Hacks 1 | . . . . . . . . 1 . . . Seal Access 1 | . . . . . . . . 1 . . . Unauthorized Hacks 1 | . 1 . . . . . . . . . . Terminals 1 | . 1 . . . . . . . . . . Botnet 1 | . 1 . . . . . . . . . . Fabricators . | . . . . . . . . . . . . Repair Stations . | . . . . . . . . . . . . Recycling Units . | . . . . . . . . . . . . Scanalyzers . | . . . . . . . . . . . . Garrison Access . | . . . . . . . . . . . . Data Cores Recovered . | . . . . . . . . . . . . Used . | . . . . . . . . . . . . Hacking Detections 6 | . . . . . . . . 4 2 . . Full Trace Events 3 | . . . . . . . . 2 1 . . Feedback Events . | . . . . . . . . . . . . Feedback Blocked . | . . . . . . . . . . . . Robot Schematics Acquired . | . . . . . . . . . . . . Robots Built . | . . . . . . . . . . . . Matter . | . . . . . . . . . . . . Time . | . . . . . . . . . . . . Total Robot Build Rating . | . . . . . . . . . . . . Part Schematics Acquired . | . . . . . . . . . . . . Parts Built . | . . . . . . . . . . . . Matter . | . . . . . . . . . . . . Time . | . . . . . . . . . . . . Total Part Build Rating . | . . . . . . . . . . . . Parts Repaired . | . . . . . . . . . . . . Time . | . . . . . . . . . . . . Parts Recycled . | . . . . . . . . . . . . Recycled Matter . | . . . . . . . . . . . . Retrieved Matter . | . . . . . . . . . . . . Retrieved Components . | . . . . . . . . . . . . Parts Scanalyzed . | . . . . . . . . . . . . Part Schematics Acquired . | . . . . . . . . . . . . Parts Damaged . | . . . . . . . . . . . . Bothacking | -11 -10 -10 -9 -9 -9 -8 -8 -8 -7 -7 -7 ------------ Run | Scr Mat Min Mat Min Exi Min Mat Sto Fac Low Zio Used RIF Installer . | . . . . . . . . . . . . Robots Hacked . | . . . . . . . . . . . . Non-combat . | . . . . . . . . . . . . Combat . | . . . . . . . . . . . . Robot Hacks Applied . | . . . . . . . . . . . . Relay Couplers Released . | . . . . . . . . . . . . Robots Rewired . | . . . . . . . . . . . . Allies Hacked . | . . . . . . . . . . . . Hacks Repelled . | . . . . . . . . . . . . Allies | -11 -10 -10 -9 -9 -9 -8 -8 -8 -7 -7 -7 -------- Run | Scr Mat Min Mat Min Exi Min Mat Sto Fac Low Zio Total Allies . | . . . . . . . . . . . . Largest Group . | . . . . . . . . . . . . Highest-Rated Group . | . . . . . . . . . . . . Highest-Rated Ally . | . . . . . . . . . . . . Total Orders . | . . . . . . . . . . . . Ally Attacks . | . . . . . . . . . . . . Total Damage . | . . . . . . . . . . . . Kills . | . . . . . . . . . . . . Allies Corrupted . | . . . . . . . . . . . . Allies Melted . | . . . . . . . . . . . . Intel | -11 -10 -10 -9 -9 -9 -8 -8 -8 -7 -7 -7 ------- Run | Scr Mat Min Mat Min Exi Min Mat Sto Fac Low Zio Robot Analysis Total . | . . . . . . . . . . . . Derelict Logs Recovered 4 | . . 1 . . . . . . . 2 1 Drone Launches . | . . . . . . . . . . . . Drone Recoveries . | . . . . . . . . . . . . Exploration | -11 -10 -10 -9 -9 -9 -8 -8 -8 -7 -7 -7 ------------- Run | Scr Mat Min Mat Min Exi Min Mat Sto Fac Low Zio Turns Passed 9422 | 57 172 363 1152 242 269 1018 669 1383 1187 586 2324 Spaces Moved 4510 | 48 139 172 430 122 147 477 366 600 596 302 1111 Core 14 | 1 . . 3 . . 8 . 2 . . . Treads 3286 | . . 104 427 122 147 247 . 279 596 302 1062 Legs 41 | . . . . . . . . . . . 41 Wheels 1169 | 47 139 68 . . . 222 366 319 . . 8 Hover . | . . . . . . . . . . . . Flight . | . . . . . . . . . . . . Fastest Speed 50 | 50 90 100 160 200 180 120 120 110 180 180 110 Average Speed 171 | 89 98 140 203 200 182 178 128 163 180 180 181 Slowest Speed 1400 | 100 100 160 1150 200 200 1400 170 1300 180 180 260 Overloaded Moves . | . . . . . . . . . . . . Propulsion Burnouts . | . . . . . . . . . . . . Robots Hopped . | . . . . . . . . . . . . Cave-ins Triggered 1 | . . . . . . . . 1 . . . Exploration Rate (%) 46 | 4 30 46 36 32 54 85 41 85 18 41 86 Regions Visited 11 Branch Regions 7 Pre-discovered Areas 3 | . . 1 . . 1 . . . . . 1 Known Exits Taken 4 | . . . 1 . . 1 . 1 1 . . Unknown Exits Taken 7 | 1 1 1 . 1 1 . 1 . . 1 . Scrap Searched 12 | . . 1 . . . 1 . . . 6 4 Spaces Dug 37 | . . 28 . . . . . 8 . . 1 Terrain Destroyed 380 | . . 119 133 . . 46 70 8 . . 4 Melee 9 | . . . . . . . . 8 . . 1 Projectile 3 | . . . . . . 3 . . . . . AOE 368 | . . 119 133 . . 43 70 . . . 3 Terrain Rammed . | . . . . . . . . . . . . Walls Destroyed . | . . . . . . . . . . . . Machines Disabled . | . . . . . . . . . . . . Actions | -11 -10 -10 -9 -9 -9 -8 -8 -8 -7 -7 -7 --------- Run | Scr Mat Min Mat Min Exi Min Mat Sto Fac Low Zio Total 5423 | 57 155 273 559 121 150 535 467 854 664 319 1269 Wait 279 | . 1 78 9 . . 2 5 127 23 3 31 Move 4499 | 47 138 171 429 121 146 476 365 599 595 301 1111 Hop . | . . . . . . . . . . . . Pick Up 60 | 4 4 . 12 . . 2 22 7 6 2 1 Fast Attach 42 | 5 2 . 11 . . 2 1 8 2 2 9 Attach 45 | . . 4 10 . . 4 7 8 4 1 7 Detach 16 | . . . 7 . 4 . . 3 1 . 1 Swap 65 | . . 4 9 . . 4 10 15 7 . 16 Drop 39 | . . . 4 . . . 12 14 4 1 4 Fire 220 | 1 10 10 45 . . 40 45 19 14 9 27 Melee 132 | . . . 14 . . . . 54 2 . 62 Ram 2 | . . . 2 . . . . . . . . Kick . | . . . . . . . . . . . . Crush 22 | . . 6 7 . . 5 . . 4 . . Escape Stasis 2 | . . . . . . . . . 2 . . Rewire . | . . . . . . . . . . . . Trap . | . . . . . . . . . . . . Miscellaneous . | . . . . . . . . . . . . Route ------- -11/Scrapyard -10/Materials -10/Mines -9/Materials (discovered 2 exits: *Mat / *Min) -9/Mines -9/Exiles -8/Mines -8/Materials (discovered 4 exits: *Fac x2 / *Sto x2) -8/Storage (discovered 2 exits: *Fac / [*Rec]) -7/Factory (discovered 2 exits: *Low x2) -7/Lower Caves -7/Zion (discovered 2 exits: [*Dee] / [*Pro]) History --------- Turn | Location | Event 24 | -11/Scrapyard | Discovered new exit (range 15) 58 | -11/Scrapyard | Entered Materials 211 | -10/Materials | Discovered new exit (range 16) 230 | -10/Materials | Entered Mines 231 | -10/Mines | Assembled infested the area 236 | -10/Mines | Assisted by a Guerilla fighting off Assembled 282 | -10/Mines | Destroyed 16 combat bots 287 | -10/Mines | Lost 3 parts (1n2w) 306 | -10/Mines | Build established: Mutant 448 | -10/Mines | Lost 3 parts (1p2w) 574 | -10/Mines | Discovered new exit (range 11) 575 | -10/Mines | Learned location of 2 exits from Materials 580 | -10/Mines | Learned location of Storage (-8) 593 | -10/Mines | Entered Materials 593 | -9/Materials | Evolved 2 slots: Weapon x2 594 | -9/Materials | Identified exit to Mines 594 | -9/Materials | Identified exit to Materials 1214 | -9/Materials | System corruption reached 10% 1230 | -9/Materials | Core integrity fell below 50% 1266 | -9/Materials | Lost 5 parts (1p1n3w) 1484 | -9/Materials | Build established: Hauler-Mutant 1745 | -9/Materials | Entered Mines 1768 | -9/Mines | Met a Derelict bent on vengeance 1811 | -9/Mines | Build established: Hauler-Gunner 1977 | -9/Mines | Deemed a non-threat by the Exiles lab entrance 1979 | -9/Mines | Discovered new exit (range 5) 1987 | -9/Mines | Entered Exiles 2041 | -9/Exiles | Met 8R-AWN 2072 | -9/Exiles | Met EX-HEX 2139 | -9/Exiles | Met EX-DEC 2171 | -9/Exiles | Learned location of Zion (-7) 2232 | -9/Exiles | Discovered new exit (range 14) 2256 | -9/Exiles | Entered Mines 2329 | -8/Mines | Build established: Hauler-Mutant 2761 | -8/Mines | Build established: Hauler-Gunner 3181 | -8/Mines | Core integrity fell below 20% 3265 | -8/Mines | Discovered exit to Materials (range 4) 3274 | -8/Mines | Entered Materials 3274 | -8/Materials | Evolved 2 slots: Utility x2 3412 | -8/Materials | Discovered new exit (range 4) 3533 | -8/Materials | Discovered new exit (range 15) 3665 | -8/Materials | Discovered new exit (range 3) 3719 | -8/Materials | Lost 4 parts (1n1u2w) 3821 | -8/Materials | Discovered new exit (range 6) 3943 | -8/Materials | Entered Storage 4249 | -8/Storage | Lost 5 parts (2p1n1u1w) 4254 | -8/Storage | Used back door to open Recycling access 4254 | -8/Storage | Discovered new exit (range 5) 4318 | -8/Storage | Core integrity fell below 50% 4482 | -8/Storage | Build established: Hauler-Mutant 4530 | -8/Storage | Identified exit to Factory 4913 | -8/Storage | Crushed by falling debris 4973 | -8/Storage | Core integrity fell below 20% 5326 | -8/Storage | Entered Factory 5326 | -7/Factory | Evolved 2 slots: Propulsion x1, Weapon x1 5756 | -7/Factory | Discovered new exit (range 11) 5958 | -7/Factory | Build established: Hauler-Gunner 6346 | -7/Factory | Build established: Hauler-Tank 6461 | -7/Factory | Identified exit to Lower Caves 6513 | -7/Factory | Entered Lower Caves 6613 | -7/Lower Caves | Learned 8 Factory zone layouts 6922 | -7/Lower Caves | Learned location of 1 exit from Factory 7055 | -7/Lower Caves | Attracted the attention of an 0b10 checkpoint 7082 | -7/Lower Caves | A Derelict revealed a hidden shortcut to a safe place 7099 | -7/Lower Caves | Entered Zion 7222 | -7/Zion | Given the Hacking Drone Bay 7222 | -7/Zion | Found Prototype Device 7222 | -7/Zion | Identified Hacking Drone Bay 7310 | -7/Zion | Discovered new exit (range 12) 7389 | -7/Zion | System corruption cleaned by Quarantine Array 7456 | -7/Zion | Build established: Hauler-Mutant 7550 | -7/Zion | Learned Factory emergency access door positions 7694 | -7/Zion | Acquired unknown access codes intercepted by a Zionite 7852 | -7/Zion | Learned location of Data Miner (-6) 8158 | -7/Zion | Opened final containment barrier to the Deep Caves 8199 | -7/Zion | Discovered new exit (range 3) 8199 | -7/Zion | Saw the warning signs outside the Deep Caves entrance 8413 | -7/Zion | Received a hallucinogenic algorithm 8978 | -7/Zion | Attacked by Zionites 9210 | -7/Zion | 7V-RTL came to Zion's defense 9212 | -7/Zion | Destroyed Imprinter 9335 | -7/Zion | Extracted access codes from Imprinter's data core 9349 | -7/Zion | Core integrity fell below 50% 9385 | -7/Zion | Lost 15 parts (1p5n3u6w) 9395 | -7/Zion | Core integrity fell below 20% 9423 | -7/Zion | Destroyed by 7V-RTL with Dispersion Rifle Last Messages --------------- 09367_ Acquired Mak. Leg. 09369_ Penetrated by Slug. 09369_ Slug penetrates Twisted Machinery. 09370_ Acquired Mak. Power Source. 09372_ Acquired 13 matter. 09372_ Slug penetrates Twisted Machinery. 09372_ Slug penetrates Wall. 09375_ Acquired Mak. Axe. 09375_ Penetrated by Slug. 09375_ Slug penetrates Twisted Machinery. 09386_ Mak. Leg destroyed. 09399_ Penetrated by Slug. 09411_ Mak. Leg destroyed. 09411_ Mak. Power Source destroyed. 09414_ Coolant Injector destroyed. 09417_ Penetrated by Slug. 09417_ Critical hit. 09417_ Enh. Autogun destroyed. 09417_ 7V-RTL suffers critical hit. 09417_ Destroyed Unknown Treads. Map ----- +----------------------------------------------------+ | ?????????????????????????????????????????????????? | | ?????????????????????????????????????????????????? | | ?????????????????????????????????????????????????? | | ?????????????????????????????????????????????????? | | ??????#######????????????????????????????????????? | | ??????#[[[[]#????????????????????????????????????? | | ??????# [#????????????????????????????????????# | | ??????#! |#????????????????????????####??###???# | | ??????##" "##?????????????????####?###""###"""##"# | | ???????# #?#####??????????###""###"""""""""""""" | | ##????## ##"##"#####????###"""""##""" "" " | | "######" #"""#"""#????#"""" """""" | | ""##""# "" " """"#???##""" """" | | """"""""" ""#???#""" """ | | "#"""""" " * ""#????#"" "" "#" | | """" =% "##??###"" "" """" "" | | "##??#"#"" """""""" | | # ####""" ""#"##" | | """"""" ""#""" ""#"#" | | "#""""" """ """"" | | ""#""" % """""" | | ###"" | | | ??##" / ![%!= % != | | ???# = % ! """"" | | ??#"" "" ! ! Y "" ""#"" | | ?#""" "" @ """" """"## | | ?##"" """" " """""" """""" | | ?#""""""""" "" = | | ?##""""###"""""" " = | | ??#######"#""""" " = | | ????####"#""""""""" """"##""""""##""""" | | ???##"""""""" """" """"""""""""""""""""" | | ??"""""" """ """" /! " "#"#"#"""##""""""##"" | | ??#"""" "" "" =*"" ;####???"#?########### | | ?#"""" "" ####???????????????????? | | ??#" = "" ##?????????????????????? | | ?##" "" "#?????????????????????? | | ?"""" "" * "" "##????????????????????? | | #"""" """ %= " ""#????????????????????? | | #""" "" ""#????????????????????? | | ?"" "" "#"#??????????????????? | | ?"""" "" ""#???????????????????? | | ??#"" """#???????????????????? | | ??#"" /%! ""###???????????????????? | | ??#"" """##?????????????????????? | | ??##"" """ ""###?????????????????????? | | ???##" "" """ """"##????????????????????? | | ????#" """ "#""""" #""""#????????????????????? | | ???#"" """ """""#" """"#?????????????????????? | | ???#"" """ ""##" """#?????????????????????? | +----------------------------------------------------+ Best States ------------- Heat Dissipation 48 Coolant Potential 130 Energy Generation 15 Energy Capacity 280 Matter Stores 300 Matter Capacity 300 Sight Range 16 Terrain Scan Density 10 Armor Coverage 600 Evasion (%) 42 Melee Accuracy 5 Recoil Reduction 3 Item Schematics ----------------- None Robot Schematics ------------------ None Fabricated ------------ Nothing Alien Tech Used ----------------- None Achievements -------------- None Challenges ------------ None Game ------ Seed NodeDispersionShield Manual? 0 Play Time 00:50:47 Cumulative 1161.9 hours Start 2020.10.30 @ 22:41:09 End 2020.10.30 @ 23:29:02 Sessions 1 Manual Loads 0 Difficulty Rogue Special Mode Halloween2020/ForbiddenLore Game No. 425 Rogue 425 Adventurer 0 Explorer 0 Win Type - Total 26 Types 13/2/7/0/0/0/4/0/0 Lore% 95 Gallery% 96 Achievement% 84 Wizard Run 0 Options --------- ASCII 0 Keyboard 0 Movement Vi Keybinds 0 Fullscreen 0 Font 12/Crisp Map View 76x50 Tactical HUD 1 Map Filters NONE Filters NONE Steam 1 RUN: e49ebe95-8332-4e28-b1a2-1216c2f493f4